bitfinex/quotes_BTCUSD_20241009
["timestamp","ask_amount","ask_price","bid_price","bid_amount"]
[1728450930033,0.08497122,62449.0,62448.0,0.31736278]
[1728450930499,0.013,62449.0,62448.0,0.31736278]
[1728450930945,0.013,62449.0,62448.0,0.34036278]
[1728450931163,0.013,62449.0,62448.0,0.46406278]
[1728450931582,0.02191387,62449.0,62448.0,0.46406278]
[1728450931815,0.01491387,62449.0,62448.0,0.46406278]
[1728450932022,0.01491387,62449.0,62448.0,0.46606278]
[1728450932259,0.01691387,62449.0,62448.0,0.46406278]
[1728450932754,0.01791387,62449.0,62448.0,0.46906278]
[1728450932941,0.001,62449.0,62448.0,0.46906278]
[1728450933433,0.001,62449.0,62448.0,0.47206278]
[1728450933887,0.001,62449.0,62448.0,0.47706278]
[1728450934335,0.160079,62469.0,62448.0,0.31692978]
[1728450934552,0.320131,62475.0,62457.0,0.30664634]
[1728450934769,0.160075,62471.0,62457.0,0.51884634]
[1728450935851,0.02909715,62458.0,62457.0,0.51884634]
[1728450936083,0.02909715,62458.0,62457.0,0.52584634]
[1728450936318,0.03009715,62458.0,62457.0,0.52384634]
[1728450936562,0.03109715,62458.0,62457.0,0.52984634]
[1728450936779,0.02609715,62458.0,62457.0,0.52984634]
[1728450937229,0.001,62458.0,62457.0,0.52984634]
[1728450937459,0.001,62458.0,62457.0,0.53184634]
[1728450937682,0.001642,62473.0,62461.0,0.00323015]
[1728450937886,0.001642,62473.0,62461.0,0.28363534]
[1728450938116,0.161711,62473.0,62461.0,0.28363534]
[1728450938328,0.001642,62473.0,62461.0,0.28363534]
[1728450938558,0.001642,62473.0,62461.0,0.51593534]
[1728450939205,0.002642,62462.0,62461.0,0.52293534]
[1728450939662,0.003642,62462.0,62461.0,0.52793534]
[1728450941010,0.003642,62462.0,62461.0,0.53293534]
[1728450941454,0.003642,62462.0,62461.0,0.53493534]
[1728450942183,0.001642,62473.0,62462.0,0.01023015]
[1728450942410,0.001642,62473.0,62462.0,0.40642715]
[1728450943772,0.001642,62473.0,62462.0,0.48050578]
[1728450944677,0.001642,62473.0,62462.0,0.48350578]
[1728450944911,0.02773305,62463.0,62462.0,0.49150578]
[1728450945477,0.02773305,62463.0,62462.0,0.48950578]
[1728450945893,0.002642,62463.0,62462.0,0.49150578]
[1728450946127,0.002642,62463.0,62462.0,0.64691922]
[1728450946336,0.02509028,62470.0,62469.0,0.18630915]
[1728450946537,0.04000888,62470.0,62469.0,0.30661534]
[1728450947164,0.001642,62473.0,62469.0,0.30661534]
[1728450947390,0.001642,62473.0,62472.0,0.30660734]
[1728450947616,0.001642,62473.0,62472.0,0.38068597]
[1728450948960,0.005642,62473.0,62472.0,0.38068597]
[1728450949189,0.02555678,62473.0,62472.0,0.38168597]
[1728450949418,0.02155678,62473.0,62472.0,0.38168597]
[1728450949657,0.02155678,62473.0,62472.0,0.59248597]
[1728450949658,0.01655678,62473.0,62472.0,0.59248597]
[1728450949880,0.001642,62473.0,62472.0,0.59848597]
[1728450951047,0.001642,62473.0,62472.0,0.59648597]
[1728450951271,0.001642,62473.0,62472.0,0.59248597]
[1728450951499,0.001642,62473.0,62472.0,0.59548597]
[1728450951714,0.001642,62473.0,62472.0,0.60048597]
[1728450955409,0.01657035,62473.0,62472.0,0.60048597]
[1728450957816,0.01658486,62473.0,62472.0,0.60048597]
[1728450960447,0.01658486,62473.0,62472.0,0.26937978]
[1728450960673,0.01658486,62473.0,62472.0,0.38968597]
[1728450961585,0.01658486,62473.0,62472.0,0.38468597]
[1728450962034,0.01658486,62473.0,62472.0,0.38768597]
[1728450962473,0.01658486,62473.0,62472.0,0.38468597]
[1728450962909,0.01658486,62473.0,62472.0,0.35768597]
[1728450963149,0.15028486,62473.0,62472.0,0.35768597]
[1728450963378,0.15028486,62473.0,62472.0,0.23737978]
[1728450963645,0.15028486,62473.0,62472.0,0.00323015]
[1728450963646,0.1503884,62473.0,62472.0,0.00323015]
[1728450963813,0.48085731,62473.0,62472.0,0.00323015]
[1728450964043,0.48185731,62473.0,62472.0,0.00323015]
[1728450964469,0.48085731,62473.0,62472.0,0.00323015]
[1728450964877,0.48585731,62473.0,62472.0,0.00423015]
[1728450965092,0.48585731,62473.0,62472.0,0.01668378]
[1728450965310,0.48085731,62473.0,62472.0,0.01568378]
[1728450965756,0.48885731,62473.0,62472.0,0.01668378]
[1728450966442,0.32878831,62473.0,62472.0,0.01668378]
[1728450967313,0.32078831,62473.0,62472.0,0.01568378]
[1728450967521,0.30580184,62473.0,62472.0,0.01568378]
[1728450967750,0.31080184,62473.0,62472.0,0.01668378]
[1728450967964,0.31880184,62473.0,62472.0,0.01768378]
[1728450968194,0.30580184,62473.0,62472.0,0.01568378]
[1728450968405,0.31080184,62473.0,62472.0,0.01568378]
[1728450968634,0.0276884,62473.0,62472.0,0.17675478]
[1728450968847,0.0226884,62473.0,62472.0,0.17675478]
[1728450969281,0.0266884,62473.0,62472.0,0.17675478]
[1728450969498,0.0226884,62473.0,62472.0,0.17675478]
[1728450969706,0.0226884,62473.0,62472.0,0.01668378]
[1728450969911,0.0216884,62473.0,62472.0,0.01568378]
[1728450970173,0.0266884,62473.0,62472.0,0.01668378]
[1728450970605,0.0216884,62473.0,62472.0,0.01568378]
[1728450971030,0.0276884,62473.0,62472.0,0.01668378]
[1728450971255,0.0226884,62473.0,62472.0,0.01668378]
[1728450971471,0.0166884,62473.0,62472.0,0.01568378]
[1728450971685,0.0216884,62473.0,62472.0,0.01668378]
[1728450971934,0.0256884,62473.0,62472.0,0.01668378]
[1728450972151,0.0216884,62473.0,62472.0,0.01668378]
[1728450972482,0.0266884,62473.0,62472.0,0.01668378]
[1728450972689,0.0216884,62473.0,62472.0,0.01668378]
[1728450972910,0.0166884,62473.0,62472.0,0.01568378]
[1728450973114,0.0206884,62473.0,62472.0,0.01568378]
[1728450973281,0.0266884,62473.0,62472.0,0.01668378]
[1728450973696,0.0206884,62473.0,62472.0,0.01568378]
[1728450974051,0.0256884,62473.0,62472.0,0.01668378]
[1728450975446,0.20288929,62473.0,62472.0,0.01668378]
[1728450976086,0.20288929,62473.0,62472.0,0.17675478]
[1728450976283,0.09769138,62473.0,62472.0,0.17675478]
[1728450976502,0.0256884,62473.0,62472.0,0.17675478]
[1728450976926,0.07369023,62473.0,62472.0,0.17675478]
[1728450977364,0.0256884,62473.0,62472.0,0.17675478]
[1728450977817,0.07369089,62473.0,62472.0,0.17675478]
[1728450978043,0.0256884,62473.0,62472.0,0.17675478]
[1728450978476,0.07369089,62473.0,62472.0,0.17675478]
[1728450979130,0.0256884,62473.0,62472.0,0.17675478]
[1728450979588,0.07369089,62473.0,62472.0,0.17675478]
[1728450980217,0.0256884,62473.0,62472.0,0.17675478]
[1728450980437,0.07369089,62473.0,62472.0,0.17675478]
[1728450980682,0.0256884,62473.0,62472.0,0.20175478]
[1728450980881,0.0256884,62473.0,62472.0,0.19975478]
[1728450980882,0.010642,62473.0,62472.0,0.19975478]
[1728450981938,0.006642,62473.0,62472.0,0.19975478]
[1728450982166,0.007642,62473.0,62472.0,0.20575478]
[1728450982375,0.007642,62473.0,62472.0,0.19975478]
[1728450982797,0.003642,62473.0,62472.0,0.20775478]
[1728450982995,0.008642,62473.0,62472.0,0.20875478]
[1728450983675,0.001642,62473.0,62472.0,0.19875478]
[1728450983918,0.001642,62473.0,62472.0,0.20375478]
[1728450984560,0.001642,62473.0,62472.0,0.19875478]
[1728450984977,0.002642,62473.0,62472.0,0.20475478]
[1728450985400,0.002642,62473.0,62472.0,0.19875478]
[1728450985401,0.001642,62473.0,62472.0,0.19875478]
[1728450985618,0.002642,62473.0,62472.0,0.20875478]
[1728450985825,0.002642,62473.0,62472.0,0.21375478]
[1728450986037,0.003642,62473.0,62472.0,0.21775478]
[1728450986663,0.003642,62473.0,62472.0,0.21975478]
[1728450987096,0.003642,62473.0,62472.0,0.29935478]
[1728450989214,0.003642,62473.0,62472.0,0.45476822]
[1728450989474,0.07282398,62482.0,62481.0,0.00323015]
[1728450989678,0.07282398,62482.0,62481.0,0.32353797]
[1728450989892,0.08790138,62482.0,62481.0,0.32353797]
[1728450990130,0.07282398,62482.0,62481.0,0.32353797]
[1728450990371,0.07282398,62482.0,62475.0,0.00323015]
[1728450990372,0.2042,62481.0,62475.0,0.00323015]
[1728450990615,0.160058,62477.0,62476.0,0.00323015]
[1728450990836,0.31547144,62477.0,62476.0,0.00323015]
[1728450991081,0.33055494,62477.0,62476.0,0.13668997]
[1728450992183,0.33755494,62477.0,62476.0,0.13768997]
[1728450992526,0.17749694,62477.0,62476.0,0.01738378]
[1728450992751,0.0220835,62477.0,62476.0,0.17744478]
[1728450992955,0.14207692,62477.0,62476.0,0.17744478]
[1728450993241,0.14207692,62477.0,62476.0,0.01738378]
[1728450993930,0.14207692,62477.0,62476.0,0.01838378]
[1728450993931,0.15007692,62477.0,62476.0,0.01838378]
[1728450994341,0.14307692,62477.0,62476.0,0.01738378]
[1728450994756,0.14907692,62477.0,62476.0,0.01838378]
[1728450995227,0.14107692,62477.0,62476.0,0.01738378]
[1728450995655,0.14807692,62477.0,62476.0,0.01838378]
[1728450996294,0.14807619,62477.0,62476.0,0.01838378]
[1728450996443,0.0280835,62477.0,62476.0,0.01838378]
[1728450998764,0.0210835,62477.0,62476.0,0.01738378]
[1728450998984,0.0270835,62477.0,62476.0,0.01838378]
[1728450999206,0.0210835,62477.0,62476.0,0.01738378]
[1728450999432,0.0260835,62477.0,62476.0,0.01738378]
[1728451000169,0.14608542,62477.0,62476.0,0.01738378]
[1728451001497,0.0260835,62477.0,62476.0,0.01738378]
[1728451004702,0.0260835,62477.0,62476.0,0.17744478]
[1728451004891,0.05117219,62477.0,62476.0,0.17744478]
[1728451005089,0.05117219,62477.0,62476.0,0.01738378]
[1728451005340,0.05117219,62477.0,62476.0,0.17744478]
[1728451005802,0.011,62477.0,62476.0,0.17744478]
[1728451006266,0.05900181,62477.0,62476.0,0.17744478]
[1728451006482,0.011,62477.0,62476.0,0.17744478]
[1728451006717,0.02609511,62477.0,62476.0,0.17744478]
[1728451007369,0.07409692,62477.0,62476.0,0.17744478]
[1728451007840,0.02609511,62477.0,62476.0,0.17744478]
[1728451008086,0.07409373,62477.0,62476.0,0.17744478]
[1728451008635,0.07409336,62477.0,62476.0,0.17744478]
[1728451009292,0.07409259,62477.0,62476.0,0.20044478]
[1728451009721,0.02609511,62477.0,62476.0,0.20044478]
[1728451011771,0.011,62477.0,62476.0,0.20044478]
[1728451012298,0.001642,62478.0,62477.0,0.16328815]
[1728451012804,0.01675729,62478.0,62477.0,0.16328815]
[1728451014569,0.01675729,62478.0,62477.0,0.28349416]
[1728451014811,0.01675729,62478.0,62477.0,0.28449416]
[1728451020124,0.06475013,62478.0,62477.0,0.28449416]
[1728451020303,0.08874655,62478.0,62477.0,0.28449416]
[1728451021210,0.08874655,62478.0,62477.0,0.28349416]
[1728451021434,0.09074655,62478.0,62477.0,0.28349416]
[1728451023016,0.12435729,62478.0,62477.0,0.00323015]
[1728451023235,0.12435729,62478.0,62477.0,0.06367517]
[1728451023478,0.12335729,62478.0,62477.0,0.06367517]
[1728451023720,0.12335729,62478.0,62477.0,0.22473317]
[1728451023993,0.12335729,62478.0,62477.0,0.22373317]
[1728451024444,0.12435729,62478.0,62477.0,0.22373317]
[1728451024693,0.14944572,62478.0,62477.0,0.22373317]
[1728451024928,0.24845873,62478.0,62477.0,0.22373317]
[1728451025204,0.25545873,62478.0,62477.0,0.22473317]
[1728451025423,0.15844572,62478.0,62477.0,0.22473317]
[1728451025669,0.24745946,62478.0,62477.0,0.22373317]
[1728451026133,0.24945946,62478.0,62477.0,0.22373317]
[1728451026618,0.27442782,62478.0,62477.0,0.22373317]
[1728451026851,0.16782782,62478.0,62477.0,0.22373317]
[1728451027517,0.04784572,62478.0,62477.0,0.22373317]
[1728451027960,0.04584572,62478.0,62477.0,0.22373317]
[1728451028173,0.16982782,62478.0,62477.0,0.22373317]
[1728451028609,0.16582782,62478.0,62477.0,0.22373317]
[1728451029036,0.04784572,62478.0,62477.0,0.22373317]
[1728451029257,0.14386125,62478.0,62477.0,0.22373317]
[1728451029465,0.04784572,62478.0,62477.0,0.22373317]
[1728451029649,0.16782782,62478.0,62477.0,0.22373317]
[1728451030699,0.14273939,62478.0,62477.0,0.22373317]
[1728451030896,0.02275729,62478.0,62477.0,0.22373317]
[1728451031102,0.14273939,62478.0,62477.0,0.22373317]
[1728451031593,0.02275729,62478.0,62477.0,0.22373317]
[1728451031819,0.118772,62478.0,62477.0,0.22373317]
[1728451032253,0.09476734,62478.0,62477.0,0.22373317]
[1728451032471,0.118772,62478.0,62477.0,0.22373317]
[1728451033363,0.02275729,62478.0,62477.0,0.22373317]
[1728451033985,0.0947677,62478.0,62477.0,0.22373317]
[1728451034414,0.04784515,62478.0,62477.0,0.22373317]
[1728451034622,0.11985556,62478.0,62477.0,0.22373317]
[1728451035044,0.11785556,62478.0,62477.0,0.22373317]
[1728451035459,0.11985556,62478.0,62477.0,0.22373317]
[1728451036095,0.04384515,62478.0,62477.0,0.22373317]
[1728451036320,0.02872986,62478.0,62477.0,0.22373317]
[1728451036543,0.11684975,62478.0,62477.0,0.22373317]
[1728451036989,0.04583781,62478.0,62477.0,0.22373317]
[1728451037216,0.04583781,62478.0,62477.0,0.24673317]
[1728451037217,0.09384652,62478.0,62477.0,0.24673317]
[1728451037454,0.09184652,62478.0,62477.0,0.24673317]
[1728451037662,0.10585836,62478.0,62477.0,0.24673317]
[1728451037899,0.10785836,62478.0,62477.0,0.24673317]
[1728451038360,0.10786108,62478.0,62477.0,0.24673317]
[1728451039895,0.10686108,62478.0,62477.0,0.24673317]
[1728451040339,0.08177322,62478.0,62477.0,0.25073317]
[1728451040758,0.07977322,62478.0,62477.0,0.25073317]
[1728451041202,0.03176179,62478.0,62477.0,0.25073317]
[1728451041412,0.01674995,62478.0,62477.0,0.25073317]
[1728451041831,0.06476759,62478.0,62477.0,0.25073317]
[1728451042457,0.03176141,62478.0,62477.0,0.34983317]
[1728451042681,0.03176141,62478.0,62477.0,0.42743317]
[1728451044186,0.03176044,62478.0,62477.0,0.42743317]
[1728451047675,0.03175627,62478.0,62477.0,0.42743317]
[1728451048852,0.03175627,62478.0,62477.0,0.33133317]
[1728451050245,0.03175627,62478.0,62477.0,0.25373317]
[1728451050529,0.03175627,62478.0,62477.0,0.29049416]
[1728451050721,0.12779562,62478.0,62477.0,0.29049416]
[1728451050895,0.03175627,62478.0,62477.0,0.29049416]
[1728451051100,0.12781477,62478.0,62477.0,0.29049416]
[1728451051327,0.03175627,62478.0,62477.0,0.29049416]
[1728451051503,0.12781622,62478.0,62477.0,0.29049416]
[1728451051720,0.12781622,62478.0,62477.0,0.28749416]
[1728451051956,0.03175627,62478.0,62477.0,0.28349416]
[1728451052184,0.03375627,62478.0,62477.0,0.28349416]
[1728451052393,0.03475627,62478.0,62477.0,0.28349416]
[1728451052613,0.10680185,62478.0,62477.0,0.28349416]
[1728451052832,0.03475627,62478.0,62477.0,0.28349416]
[1728451053050,0.03375627,62478.0,62477.0,0.28349416]
[1728451053277,0.10580147,62478.0,62477.0,0.28349416]
[1728451053516,0.10380147,62478.0,62477.0,0.28549416]
[1728451053755,0.10580059,62478.0,62477.0,0.28549416]
[1728451053982,0.03375627,62478.0,62477.0,0.28549416]
[1728451054211,0.01674995,62478.0,62477.0,0.28549416]
[1728451054485,0.10380216,62478.0,62477.0,0.28649416]
[1728451054702,0.03175689,62478.0,62477.0,0.28649416]
[1728451056270,0.12781785,62478.0,62477.0,0.28649416]
[1728451056984,0.12781785,62478.0,62477.0,0.00623015]
[1728451056985,0.12965689,62478.0,62477.0,0.00623015]
[1728451057216,0.22571978,62478.0,62477.0,0.003]
[1728451057431,0.22571978,62478.0,62477.0,0.05064595]
[1728451057432,0.12965689,62478.0,62477.0,0.05064595]
[1728451057650,0.12965689,62478.0,62477.0,0.21070395]
[1728451057858,0.12965689,62478.0,62477.0,0.20970395]
[1728451058087,0.13165689,62478.0,62477.0,0.20970395]
[1728451058306,0.13165689,62478.0,62477.0,0.20770395]
[1728451058527,0.25173309,62478.0,62477.0,0.20770395]
[1728451058737,0.25273309,62478.0,62477.0,0.20770395]
[1728451058954,0.25173309,62478.0,62477.0,0.20770395]
[1728451059187,0.25273309,62478.0,62477.0,0.20770395]
[1728451059864,0.25073309,62478.0,62477.0,0.20770395]
[1728451060543,0.13665689,62478.0,62477.0,0.20870395]
[1728451060813,0.25673377,62478.0,62477.0,0.20870395]
[1728451061032,0.25073377,62478.0,62477.0,0.20770395]
[1728451061708,0.25273377,62478.0,62477.0,0.20770395]
[1728451061924,0.25273308,62478.0,62477.0,0.20770395]
[1728451063740,0.13265689,62478.0,62477.0,0.20770395]
[1728451063966,0.25273308,62478.0,62477.0,0.20770395]
[1728451064625,0.23772614,62478.0,62477.0,0.20770395]
[1728451064850,0.2527363,62478.0,62477.0,0.20770395]
[1728451065090,0.2527363,62478.0,62473.0,0.00405115]
[1728451065091,0.160062,62476.0,62473.0,0.00405115]
[1728451065322,0.18552294,62475.0,62473.0,0.00405115]
[1728451065549,0.01501016,62474.0,62473.0,0.12425716]
[1728451065757,0.18552527,62474.0,62473.0,0.18470528]
[1728451066255,0.18552527,62474.0,62473.0,0.18570528]
[1728451066694,0.17051511,62474.0,62473.0,0.18570528]
[1728451067569,0.17051511,62474.0,62473.0,0.18470528]
[1728451067780,0.17051511,62474.0,62473.0,0.18970528]
[1728451068241,0.17051511,62474.0,62473.0,0.18470528]
[1728451068467,0.17451511,62474.0,62473.0,0.18470528]
[1728451068686,0.19451284,62474.0,62473.0,0.18570528]
[1728451069118,0.19051284,62474.0,62473.0,0.18570528]
[1728451069834,0.17451511,62474.0,62473.0,0.18470528]
[1728451070327,0.29951306,62474.0,62473.0,0.18570528]
[1728451070774,0.17451511,62474.0,62473.0,0.18470528]
[1728451071145,0.17951511,62474.0,62473.0,0.18570528]
[1728451072341,0.29949214,62474.0,62473.0,0.18570528]
[1728451072540,0.29949214,62474.0,62473.0,0.34577428]
[1728451072964,0.29449214,62474.0,62473.0,0.18470528]
[1728451073185,0.29049214,62474.0,62473.0,0.18470528]
[1728451073413,0.29549214,62474.0,62473.0,0.34577428]
[1728451073677,0.27148772,62474.0,62473.0,0.34577428]
[1728451073894,0.17551511,62474.0,62473.0,0.34577428]
[1728451074110,0.17051511,62474.0,62473.0,0.34477428]
[1728451074331,0.17451511,62474.0,62473.0,0.34477428]
[1728451074555,0.17951511,62474.0,62473.0,0.34577428]
[1728451074786,0.11606962,62474.0,62473.0,0.34577428]
[1728451075000,0.12006962,62474.0,62473.0,0.34577428]
[1728451075238,0.12006962,62474.0,62473.0,0.42327428]
[1728451075239,0.07372416,62474.0,62473.0,0.42327428]
[1728451075909,0.02574367,62474.0,62473.0,0.42327428]
[1728451077566,0.04074045,62474.0,62473.0,0.42327428]
[1728451079394,0.04074315,62474.0,62473.0,0.42327428]
[1728451079837,0.0407436,62474.0,62473.0,0.42327428]
[1728451080270,0.0357436,62474.0,62473.0,0.42227428]
[1728451080719,0.02164193,62474.0,62473.0,0.42327428]
[1728451080940,0.03669096,62474.0,62473.0,0.42327428]
[1728451081151,0.04069096,62474.0,62473.0,0.42327428]
[1728451081625,0.02069103,62474.0,62473.0,0.42227428]
[1728451081853,0.01669103,62474.0,62473.0,0.42227428]
[1728451082095,0.03169274,62474.0,62473.0,0.34477428]
[1728451082333,0.03269274,62474.0,62473.0,0.34477428]
[1728451082604,0.03169274,62474.0,62473.0,0.34477428]
[1728451083271,0.03669274,62474.0,62473.0,0.34577428]
[1728451083730,0.03169274,62474.0,62473.0,0.34477428]
[1728451083943,0.03169274,62474.0,62473.0,0.34877428]
[1728451084173,0.03169274,62474.0,62473.0,0.35177428]
[1728451084371,0.03169274,62474.0,62473.0,0.34777428]
[1728451084579,0.03169274,62474.0,62473.0,0.34877428]
[1728451085019,0.03169274,62474.0,62473.0,0.34777428]
[1728451085262,0.03169274,62474.0,62473.0,0.35177428]
[1728451086173,0.03169274,62474.0,62473.0,0.34877428]
[1728451086623,0.03169274,62474.0,62473.0,0.35177428]
[1728451088481,0.01669103,62474.0,62473.0,0.35177428]
[1728451088698,0.03169654,62474.0,62473.0,0.35177428]
[1728451094624,0.03169654,62474.0,62473.0,0.44907428]
[1728451094831,0.03169654,62474.0,62473.0,0.55197428]
[1728451095246,0.01664751,62474.0,62473.0,0.55197428]
[1728451095901,0.01664751,62474.0,62473.0,0.55697428]
[1728451098172,0.01664751,62474.0,62473.0,0.55897428]
[1728451098857,0.01664751,62474.0,62473.0,0.55697428]
[1728451100223,0.01664751,62474.0,62473.0,0.55897428]
[1728451104072,0.01664751,62474.0,62473.0,0.55697428]
[1728451105291,0.01664372,62474.0,62473.0,0.55697428]
[1728451108040,0.01664372,62474.0,62473.0,0.43676827]
[1728451108351,0.01664372,62474.0,62473.0,0.55697428]
[1728451108595,0.01664372,62474.0,62473.0,0.45967428]
[1728451109044,0.01664372,62474.0,62473.0,0.37977428]
[1728451111077,0.01664372,62474.0,62473.0,0.37577428]
[1728451111309,0.01664372,62474.0,62473.0,0.37277428]
[1728451111527,0.01664372,62474.0,62473.0,0.37777428]
[1728451111742,0.01664372,62474.0,62473.0,0.37477428]
[1728451112240,0.01664514,62474.0,62473.0,0.37577428]
[1728451112463,0.01664514,62474.0,62473.0,0.37777428]
[1728451113385,0.01664514,62474.0,62473.0,0.34977428]
[1728451113618,0.10774514,62474.0,62473.0,0.34977428]
[1728451114315,0.10774514,62474.0,62473.0,0.34777428]
[1728451114587,0.12103738,62474.0,62473.0,0.34477428]
[1728451114814,0.10774514,62474.0,62473.0,0.34777428]
[1728451115044,0.12104177,62474.0,62473.0,0.34577428]
[1728451115288,0.10774514,62474.0,62473.0,0.34477428]
[1728451115536,0.10874755,62474.0,62473.0,0.34477428]
[1728451116855,0.03094289,62474.0,62473.0,0.34477428]
[1728451119060,0.03094285,62474.0,62473.0,0.34477428]
[1728451120240,0.01764751,62474.0,62473.0,0.34477428]
[1728451120471,0.01664751,62474.0,62473.0,0.34877428]
[1728451120944,0.01764751,62474.0,62473.0,0.34877428]
[1728451121398,0.01664751,62474.0,62473.0,0.34877428]
[1728451122027,0.01664751,62474.0,62473.0,0.35177428]
[1728451122707,0.001642,62474.0,62473.0,0.35177428]
[1728451122945,0.01664872,62474.0,62473.0,0.35177428]
[1728451126838,0.001642,62474.0,62473.0,0.35177428]
[1728451127050,0.001642,62474.0,62473.0,0.37477428]
[1728451127850,0.01665018,62474.0,62473.0,0.37477428]
[1728451129642,0.01665018,62474.0,62473.0,0.37977428]
[1728451134533,0.01665316,62474.0,62473.0,0.37977428]
[1728451138053,0.01665316,62474.0,62473.0,0.37477428]
[1728451138308,0.01665316,62474.0,62473.0,0.37977428]
[1728451138796,0.11365316,62474.0,62473.0,0.37477428]
[1728451139047,0.12861633,62474.0,62473.0,0.35177428]
[1728451139305,0.22467295,62474.0,62473.0,0.35177428]
[1728451139545,0.23367595,62474.0,62473.0,0.35177428]
[1728451140026,0.248694,62474.0,62473.0,0.34877428]
[1728451140263,0.248694,62474.0,62473.0,0.34477428]
[1728451140705,0.248694,62474.0,62473.0,0.34577428]
[1728451140930,0.248694,62474.0,62473.0,0.34477428]
[1728451141165,0.13062322,62474.0,62473.0,0.34477428]
[1728451141373,0.13162322,62474.0,62473.0,0.34477428]
[1728451143246,0.22567459,62474.0,62473.0,0.34477428]
[1728451143604,0.22667459,62474.0,62473.0,0.34477428]
[1728451143815,0.22767459,62474.0,62473.0,0.34477428]
[1728451144908,0.21265654,62474.0,62473.0,0.34477428]
[1728451146210,0.21065654,62474.0,62473.0,0.34477428]
[1728451146632,0.2126426,62474.0,62473.0,0.34477428]
[1728451146886,0.2116426,62474.0,62473.0,0.34477428]
[1728451147092,0.2106426,62474.0,62473.0,0.34477428]
[1728451147303,0.2126426,62474.0,62473.0,0.34477428]
[1728451147959,0.2116426,62474.0,62473.0,0.34477428]
[1728451148181,0.2126426,62474.0,62473.0,0.34477428]
[1728451149712,0.2106426,62474.0,62473.0,0.34477428]
[1728451150168,0.2126426,62474.0,62473.0,0.34477428]
[1728451150608,0.2106426,62474.0,62473.0,0.34477428]
[1728451151120,0.2126426,62474.0,62473.0,0.34477428]
[1728451152698,0.21264209,62474.0,62473.0,0.34477428]
[1728451153163,0.21264209,62474.0,62473.0,0.000821]
[1728451153383,0.23665196,62474.0,62473.0,0.12425716]
[1728451153656,0.11660517,62474.0,62473.0,0.12425716]
[1728451159170,0.23662506,62474.0,62473.0,0.28432616]
[1728451159385,0.23662506,62474.0,62473.0,0.18470528]
[1728451161163,0.23662506,62474.0,62473.0,0.34477428]
[1728451161583,0.2366108,62474.0,62473.0,0.34477428]
[1728451162482,0.2346108,62474.0,62473.0,0.34477428]
[1728451162715,0.11360517,62474.0,62473.0,0.34477428]
[1728451162952,0.21160357,62474.0,62473.0,0.34477428]
[1728451163340,0.21060357,62474.0,62473.0,0.34477428]
[1728451163582,0.21260357,62474.0,62473.0,0.34477428]
[1728451163799,0.21160357,62474.0,62473.0,0.34477428]
[1728451163950,0.21260357,62474.0,62473.0,0.34477428]
[1728451166792,0.11560357,62474.0,62473.0,0.34477428]
[1728451167661,0.11560357,62474.0,62473.0,0.18470528]
[1728451167879,0.01960517,62474.0,62473.0,0.18470528]
[1728451168093,0.1396108,62474.0,62473.0,0.18470528]
[1728451168327,0.1396108,62474.0,62473.0,0.18147513]
[1728451168546,0.1396108,62474.0,62473.0,0.00405115]
[1728451168930,0.43238461,62474.0,62473.0,0.000821]
[1728451168943,0.51378461,62474.0,62473.0,0.000821]
[1728451172245,0.51892319,62474.0,62473.0,0.000821]
[1728451174517,0.51900667,62474.0,62473.0,0.000821]
[1728451179186,0.61900667,62474.0,62473.0,0.000821]
[1728451179415,0.66550028,62474.0,62473.0,0.000821]
[1728451183994,0.7630256,62474.0,62473.0,0.000821]
[1728451184490,0.76302295,62474.0,62473.0,0.000821]
[1728451184721,0.61900667,62474.0,62473.0,0.000821]
[1728451184944,0.76304084,62474.0,62473.0,0.000821]
[1728451187645,0.76303952,62474.0,62473.0,0.000821]
[1728451188958,0.68163952,62474.0,62473.0,0.000821]
[1728451189632,0.53760667,62474.0,62473.0,0.000821]
[1728451190929,0.58409577,62474.0,62473.0,0.000821]
[1728451191152,0.66549577,62474.0,62473.0,0.000821]
[1728451201771,0.82756937,62474.0,62473.0,0.000821]
[1728451204451,0.66549577,62474.0,62473.0,0.000821]
[1728451210681,0.48679577,62474.0,62473.0,0.000821]
[1728451212220,0.64890757,62474.0,62473.0,0.000821]
[1728451214099,0.48679577,62474.0,62473.0,0.000821]
[1728451221194,0.6490142,62474.0,62473.0,0.000821]
[1728451222296,0.58659577,62474.0,62473.0,0.000821]
[1728451224958,0.74883852,62474.0,62473.0,0.000821]
[1728451225808,0.74883318,62474.0,62473.0,0.000821]
[1728451227211,0.58659577,62474.0,62473.0,0.000821]
[1728451227435,0.74883318,62474.0,62473.0,0.000821]
[1728451228566,0.66759577,62474.0,62473.0,0.000821]
[1728451229013,0.58137371,62474.0,62473.0,0.000821]
[1728451229215,0.48157371,62474.0,62473.0,0.000821]
[1728451232190,0.16609427,62474.0,62473.0,0.0370515]
[1728451232412,0.01960517,62474.0,62473.0,0.2886205]
[1728451232653,0.26380383,62474.0,62473.0,0.2886205]
[1728451234611,0.11960517,62474.0,62473.0,0.2886205]
[1728451237550,0.11960517,62474.0,62473.0,0.1285515]
[1728451238849,0.01960517,62474.0,62473.0,0.1285515]
[1728451239059,0.01960517,62474.0,62473.0,0.2886205]
[1728451240162,0.01960517,62474.0,62473.0,0.1285515]
[1728451245076,0.01960517,62474.0,62473.0,0.0370515]
[1728451248396,0.01860517,62474.0,62473.0,0.0370515]
[1728451248774,0.01960517,62474.0,62473.0,0.0370515]
[1728451249074,0.01760517,62474.0,62473.0,0.0370515]
[1728451249277,0.01960517,62474.0,62473.0,0.0370515]
[1728451249488,0.01960517,62474.0,62473.0,0.1971205]
[1728451249742,0.01760517,62474.0,62473.0,0.0370515]
[1728451250149,0.01860517,62474.0,62473.0,0.0370515]
[1728451250570,0.01960517,62474.0,62473.0,0.0370515]
[1728451250990,0.23569754,62474.0,62473.0,0.27695065]
[1728451251203,0.23569754,62474.0,62473.0,0.37355065]
[1728451251204,0.0916316,62474.0,62473.0,0.37355065]
[1728451251578,0.06761608,62474.0,62473.0,0.37355065]
[1728451252016,0.06461644,62474.0,62473.0,0.37355065]
[1728451252487,0.0906316,62474.0,62473.0,0.37355065]
[1728451252704,0.0886316,62474.0,62473.0,0.37355065]
[1728451252920,0.06461144,62474.0,62473.0,0.39655065]
[1728451253109,0.06461144,62474.0,62473.0,0.40055065]
[1728451253324,0.01760517,62474.0,62473.0,0.40055065]
[1728451253820,0.01660517,62474.0,62473.0,0.40055065]
[1728451254281,0.01660517,62474.0,62473.0,0.40555065]
[1728451255893,0.001642,62474.0,62473.0,0.40555065]
[1728451256159,0.01891122,62474.0,62473.0,0.40555065]
[1728451257064,0.01891122,62474.0,62473.0,0.40055065]
[1728451257719,0.001642,62474.0,62473.0,0.40055065]
[1728451258891,0.001642,62474.0,62473.0,0.40355065]
[1728451259323,0.001642,62474.0,62473.0,0.40055065]
[1728451259538,0.001642,62474.0,62473.0,0.40355065]
[1728451260903,0.001642,62474.0,62473.0,0.39655065]
[1728451261113,0.001642,62474.0,62473.0,0.39955065]
[1728451261342,0.01664215,62474.0,62473.0,0.39655065]
[1728451261559,0.01664215,62474.0,62473.0,0.39955065]